bitfinex-derivatives/quotes_BTCF0:USTF0_20240820
["timestamp","ask_amount","ask_price","bid_price","bid_amount"]
[1724180370295,0.067578,59183.0,59180.0,0.067581]
[1724180370896,0.00809936,59184.0,59172.0,0.0461]
[1724180371201,0.067582,59180.0,59177.0,0.067585]
[1724180371393,0.00025348,59184.0,59183.0,0.067578]
[1724180371795,0.00025348,59184.0,59183.0,0.574458]
[1724180371997,0.067572,59189.0,59188.0,0.067572]
[1724180372498,0.067573,59188.0,59184.0,0.0452]
[1724180372709,0.067573,59188.0,59185.0,0.067575]
[1724180373105,0.067573,59188.0,59186.0,0.067574]
[1724180373303,0.067573,59187.0,59186.0,0.067574]
[1724180373599,0.067576,59185.0,59184.0,0.0452]
[1724180375695,0.067572,59189.0,59184.0,0.0452]
[1724180375893,0.00025348,59192.0,59184.0,0.0452]
[1724180376096,0.00025348,59192.0,59191.0,0.067569]
[1724180378095,0.067549,59209.0,59200.0,0.067558]
[1724180378096,0.067558,59201.0,59200.0,0.067558]
[1724180381506,0.12755234,59201.0,59200.0,0.067558]
[1724180381706,0.05999434,59201.0,59200.0,0.067558]
[1724180385509,0.05999434,59201.0,59200.0,0.135116]
[1724180388013,0.13389525,59203.0,59202.0,0.135112]
[1724180388209,0.19388515,59203.0,59202.0,0.135112]
[1724180388612,0.0599899,59203.0,59202.0,0.182712]
[1724180388813,0.19388515,59203.0,59202.0,0.182712]
[1724180389219,0.0599899,59203.0,59202.0,0.182712]
[1724180389715,0.00025348,59206.0,59205.0,0.202659]
[1724180390217,0.067542,59215.0,59214.0,0.067541]
[1724180390424,0.07032939,59215.0,59214.0,0.067541]
[1724180392016,0.00278739,59215.0,59214.0,0.067541]
[1724180392319,0.00278739,59215.0,59214.0,0.135083]
[1724180392711,0.00278739,59215.0,59214.0,1.001265]
[1724180393116,0.00025348,59220.0,59219.0,0.067537]
[1724180393316,0.00304066,59220.0,59219.0,3.837537]
[1724180394217,0.00304063,59220.0,59219.0,3.837537]
[1724180395224,0.00025348,59220.0,59219.0,3.837537]
[1724180395422,0.00304063,59220.0,59219.0,3.837537]
[1724180399236,0.08673482,59220.0,59219.0,3.837537]
[1724180400236,0.07057663,59220.0,59219.0,0.0626991]
[1724180400426,0.067547,59210.0,59209.0,0.00025348]
[1724180400629,0.09770559,59210.0,59209.0,0.00025348]
[1724180400936,0.24770912,59210.0,59209.0,0.00025348]
[1724180401235,0.7543899,59210.0,59209.0,0.00025348]
[1724180401929,0.067551,59207.0,59198.0,0.06531348]
[1724180402133,0.1801629,59210.0,59195.0,0.117264]
[1724180402134,0.08371392,59201.0,59195.0,0.117264]
[1724180402433,0.08371392,59200.0,59199.0,0.06756]
[1724180403228,0.10047331,59204.0,59203.0,0.067555]
[1724180403437,0.13063592,59204.0,59203.0,0.067555]
[1724180403628,0.03016274,59204.0,59203.0,0.067555]
[1724180403829,0.10329565,59204.0,59203.0,0.13511]
[1724180404029,0.13067049,59204.0,59203.0,0.067555]
[1724180404426,0.03016274,59204.0,59203.0,0.067555]
[1724180404634,0.06277635,59204.0,59203.0,0.067555]
[1724180404829,0.06277632,59204.0,59203.0,0.067555]
[1724180405130,0.09883451,59204.0,59203.0,0.067555]
[1724180405330,0.10162238,59204.0,59203.0,0.067555]
[1724180406132,0.06027632,59204.0,59198.0,0.06756]
[1724180406337,0.00025348,59205.0,59198.0,0.06756]
[1724180406338,0.13413991,59200.0,59198.0,0.06756]
[1724180406541,0.16954139,59199.0,59198.0,0.06756]
[1724180406839,0.16954525,59199.0,59198.0,0.06756]
[1724180407236,0.03540534,59199.0,59198.0,0.06756]
[1724180407431,0.10296734,59199.0,59198.0,0.06756]
[1724180407939,0.067564,59195.0,59194.0,0.00025348]
[1724180408234,0.14431974,59195.0,59194.0,0.00021348]
[1724180408439,0.32915942,59195.0,59194.0,0.00021348]
[1724180408641,0.21188374,59195.0,59194.0,0.00021348]
[1724180409433,0.21189691,59195.0,59194.0,0.00021348]
[1724180410140,0.37944299,59195.0,59194.0,0.00021348]
[1724180410634,0.17053915,59195.0,59194.0,0.00021348]
[1724180411038,0.21189691,59195.0,59194.0,0.00021348]
[1724180411235,0.17053915,59195.0,59194.0,0.00021348]
[1724180411740,0.13791587,59195.0,59194.0,0.00021348]
[1724180412535,1.25227987,59195.0,59194.0,0.00021348]
[1724180412734,1.15008766,59195.0,59177.0,0.045]
[1724180412946,0.067581,59181.0,59180.0,0.06758]
[1724180413147,0.07036887,59181.0,59180.0,0.06758]
[1724180413437,0.067585,59177.0,59175.0,0.067586]
[1724180413633,0.07037387,59176.0,59175.0,0.067586]
[1724180413830,0.067588,59174.0,59170.0,0.00025348]
[1724180414142,0.07037587,59174.0,59170.0,0.00025348]
[1724180414342,0.00278787,59174.0,59170.0,0.00025348]
[1724180414540,0.00816772,59176.0,59170.0,0.00025348]
[1724180414732,0.05014033,59180.0,59178.0,0.067583]
[1724180414938,0.00278929,59179.0,59178.0,0.067583]
[1724180415238,0.07037129,59179.0,59178.0,0.067583]
[1724180415636,0.00278929,59179.0,59178.0,0.067583]
[1724180416442,0.00025348,59182.0,59181.0,0.06758]
[1724180416935,0.00304243,59182.0,59181.0,0.06758]
[1724180419047,0.00304243,59182.0,59181.0,0.11568]
[1724180419237,0.00304243,59182.0,59181.0,0.69018]
[1724180419437,0.05014033,59197.0,59181.0,0.55502]
[1724180419632,0.05014033,59197.0,59196.0,0.067563]
[1724180419842,0.05014033,59200.0,59199.0,0.06756]
[1724180420044,0.11769633,59202.0,59199.0,0.06756]
[1724180420241,0.3254,59213.0,59184.0,0.3651]
[1724180420242,0.05014033,59203.0,59190.0,0.0459]
[1724180420547,0.05014033,59204.0,59203.0,0.067555]
[1724180420742,0.11769333,59205.0,59203.0,0.067555]
[1724180420947,0.067553,59205.0,59203.0,0.067555]
[1724180421249,0.11769333,59205.0,59203.0,0.067555]
[1724180421437,0.067553,59205.0,59203.0,0.067555]
[1724180421636,0.067557,59201.0,59199.0,0.067559]
[1724180421837,0.05039381,59206.0,59199.0,0.067559]
[1724180422044,0.05014033,59205.0,59199.0,0.067559]
[1724180422439,0.067557,59202.0,59199.0,0.067559]
[1724180422639,0.05014033,59203.0,59196.0,0.161163]
[1724180422841,0.067559,59200.0,59196.0,0.161163]
[1724180423143,0.05014033,59203.0,59196.0,0.161163]
[1724180423144,0.067562,59197.0,59196.0,0.0477]
[1724180423346,0.067563,59196.0,59195.0,0.00025348]
[1724180425446,0.067563,59196.0,59195.0,0.06781748]
[1724180426247,0.11770333,59196.0,59195.0,0.06781748]
[1724180426441,0.1177602,59196.0,59195.0,0.06781748]
[1724180426641,0.067563,59196.0,59195.0,0.06781748]
[1724180427237,0.13453233,59196.0,59195.0,0.00025348]
[1724180427437,0.285126,59196.0,59195.0,0.00025348]
[1724180428150,0.36883767,59196.0,59195.0,0.00025348]
[1724180428652,1.191926,59196.0,59195.0,0.00025348]
[1724180429144,1.21930938,59196.0,59195.0,0.00025348]
[1724180430048,0.21891564,59196.0,59195.0,0.00025348]
[1724180430646,0.15135264,59196.0,59195.0,0.00025348]
[1724180430849,0.15135264,59196.0,59195.0,0.06781748]
[1724180431355,0.15414131,59196.0,59195.0,0.06781748]
[1724180431741,0.00278867,59196.0,59195.0,0.06781748]
[1724180432048,0.00278867,59196.0,59195.0,0.49618148]
[1724180432245,0.07035167,59196.0,59195.0,0.36105348]
[1724180432450,0.07035167,59196.0,59195.0,0.42861748]
[1724180433550,0.00278867,59196.0,59195.0,0.42861748]
[1724180433754,0.00278867,59196.0,59195.0,0.49618148]
[1724180434057,0.05029536,59196.0,59195.0,1.26785348]
[1724180434354,0.05029536,59196.0,59195.0,1.40298148]
[1724180434551,0.05029536,59197.0,59196.0,0.067563]
[1724180434944,0.08404312,59206.0,59197.0,0.135124]
[1724180434945,0.05029536,59198.0,59197.0,0.135124]
[1724180435151,0.06705978,59202.0,59201.0,0.067557]
[1724180435358,0.00855891,59206.0,59205.0,0.067552]
[1724180435551,0.07610991,59206.0,59205.0,0.067552]
[1724180436844,0.24234855,59206.0,59201.0,0.3608]
[1724180437044,0.067556,59202.0,59201.0,0.3608]
[1724180438460,0.067557,59201.0,59200.0,0.067558]
[1724180438965,0.067559,59199.0,59198.0,0.0493]
[1724180440962,0.067559,59199.0,59198.0,0.11686]
[1724180444256,0.067562,59197.0,59196.0,0.0463]
[1724180444456,0.09494207,59197.0,59196.0,0.0463]
[1724180445366,0.067563,59196.0,59195.0,0.00025348]
[1724180445557,0.09494307,59196.0,59195.0,0.00025348]
[1724180446061,0.09773166,59196.0,59195.0,0.00025348]
[1724180446558,0.19818566,59196.0,59195.0,0.00025348]
[1724180446760,0.09773166,59196.0,59195.0,0.00025348]
[1724180447158,0.16529466,59196.0,59195.0,0.00025348]
[1724180448163,0.09773166,59196.0,59195.0,0.00025348]
[1724180448661,0.09773166,59196.0,59195.0,0.06781748]
[1724180449070,0.03016866,59196.0,59195.0,0.06781748]
[1724180449754,0.00278859,59196.0,59195.0,0.06781748]
[1724180450860,0.00278859,59196.0,59195.0,0.13538148]
[1724180451164,0.15168211,59201.0,59200.0,0.067558]
[1724180451362,0.067558,59201.0,59200.0,0.067558]
[1724180452261,0.09493579,59201.0,59200.0,0.067558]
[1724180452765,0.10330774,59201.0,59200.0,0.067558]
[1724180454964,0.10330867,59201.0,59200.0,0.067558]
[1724180458270,0.10330856,59201.0,59200.0,0.067558]
[1724180458768,0.03575056,59201.0,59200.0,0.067558]
[1724180459168,0.10091825,59204.0,59195.0,0.06781748]
[1724180459169,0.067553,59205.0,59204.0,0.067553]
[1724180459475,0.09492974,59205.0,59204.0,0.067553]
[1724180460370,0.02737674,59205.0,59195.0,0.00025348]
[1724180460669,0.135124,59196.0,59195.0,0.00025348]
[1724180460876,0.16250074,59196.0,59195.0,0.00025348]
[1724180461864,0.46516425,59196.0,59195.0,0.00025348]
[1724180462075,0.4977885,59196.0,59195.0,0.00025348]
[1724180462271,0.50583574,59196.0,59195.0,0.00025348]
[1724180462672,0.49527223,59196.0,59195.0,0.00025348]
[1724180462872,0.50583609,59196.0,59195.0,0.00025348]
[1724180463077,0.50862495,59196.0,59195.0,0.00025348]
[1724180465577,0.4760007,59196.0,59195.0,0.00025348]
[1724180466377,0.47600066,59196.0,59195.0,0.00025348]
[1724180466974,0.54356366,59196.0,59195.0,0.00025348]
[1724180467573,0.64428691,59196.0,59195.0,0.00025348]
[1724180468168,0.49859808,59196.0,59195.0,0.00025348]
[1724180468367,0.39788305,59196.0,59195.0,0.00025348]
[1724180469572,0.46544605,59196.0,59195.0,0.00025348]
[1724180470370,0.46544603,59196.0,59195.0,0.00025348]
[1724180470571,0.63544603,59196.0,59195.0,0.00025348]
[1724180471880,0.27578303,59196.0,59195.0,0.00025348]
[1724180472281,0.10578303,59196.0,59195.0,0.00025348]
[1724180472875,0.10578303,59196.0,59195.0,0.06781748]
[1724180474187,0.1029942,59196.0,59195.0,0.06781748]
[1724180474373,0.10578278,59196.0,59195.0,0.06781748]
[1724180478482,0.03822078,59196.0,59195.0,0.06781748]
[1724180478672,0.01083582,59196.0,59195.0,0.06781748]
[1724180478877,0.09479435,59196.0,59195.0,0.06781748]
[1724180480486,0.00278858,59196.0,59195.0,0.13538148]
[1724180481189,0.15151453,59202.0,59201.0,0.067557]
[1724180481190,0.08395853,59202.0,59201.0,0.067557]
[1724180481496,0.08395853,59203.0,59202.0,0.067556]
[1724180482283,0.15151353,59203.0,59202.0,0.067556]
[1724180482479,0.08395853,59203.0,59202.0,0.067556]
[1724180482685,0.08395853,59204.0,59203.0,0.067555]
[1724180485492,0.08393833,59204.0,59199.0,0.067559]
[1724180485693,0.06712417,59200.0,59199.0,0.135118]
[1724180486581,0.08393833,59205.0,59199.0,0.135118]
[1724180486582,0.08393833,59205.0,59204.0,0.067553]
[1724180487300,0.16027523,59206.0,59205.0,0.067552]
[1724180488591,0.067539,59217.0,59205.0,1.041824]
[1724180488592,0.08393833,59209.0,59205.0,1.041824]
[1724180488787,0.08393833,59214.0,59210.0,0.067547]
[1724180489010,0.067541,59215.0,59214.0,0.067542]
[1724180489188,0.067549,59210.0,59209.0,0.067546]
[1724180490697,0.07581409,59210.0,59209.0,0.067546]
[1724180491901,0.00826509,59210.0,59209.0,0.067546]
[1724180492197,0.067545,59212.0,59211.0,0.067545]
[1724180493092,0.07872931,59212.0,59211.0,0.067545]
[1724180493694,0.07594154,59212.0,59211.0,0.067545]
[1724180493894,0.13871527,59212.0,59211.0,0.067545]
[1724180495301,0.13871511,59212.0,59211.0,0.067545]
[1724180495708,0.07117011,59212.0,59211.0,0.067545]
[1724180495900,0.07117011,59212.0,59211.0,0.13509]
[1724180496098,0.06838234,59212.0,59211.0,0.13509]
[1724180496407,0.07117007,59212.0,59211.0,0.13509]
[1724180497698,0.06838234,59212.0,59211.0,0.13509]
[1724180498001,0.07116993,59212.0,59211.0,0.13509]
[1724180499595,0.06277339,59212.0,59211.0,0.13509]
[1724180499796,0.06277339,59212.0,59211.0,0.64173]
[1724180499991,0.0901425,59212.0,59211.0,0.64173]
[1724180500206,0.06276907,59212.0,59211.0,0.64173]
[1724180501402,0.06276907,59212.0,59211.0,1.109275]
[1724180501596,0.06276907,59212.0,59211.0,1.401375]
[1724180501597,0.06276887,59212.0,59211.0,1.401375]
[1724180501805,0.00025348,59215.0,59214.0,0.202626]
[1724180501997,0.06708699,59223.0,59219.0,0.067536]
[1724180502302,3.64559,59227.0,59225.0,0.067529]
[1724180502501,3.64379,59227.0,59225.0,0.067529]
[1724180502708,3.64379,59227.0,59226.0,0.067528]
[1724180503400,3.56889,59227.0,59226.0,1.041576]
[1724180504015,3.56889,59227.0,59226.0,4.811576]
[1724180504507,3.21728226,59227.0,59226.0,4.82000637]
[1724180504812,3.15121926,59227.0,59226.0,4.88753437]
[1724180505013,3.07631926,59227.0,59226.0,4.98781091]
[1724180505513,2.79105226,59227.0,59226.0,4.93723437]
[1724180505718,2.68541495,59227.0,59226.0,4.93723437]
[1724180506707,0.88534272,59227.0,59226.0,5.00476237]
[1724180506913,0.49080549,59227.0,59226.0,5.0131026]
[1724180507101,0.35288449,59227.0,59226.0,5.0131026]
[1724180507501,0.23810349,59227.0,59226.0,5.1631026]
[1724180507714,0.01001049,59227.0,59226.0,5.1631026]
[1724180507910,4.9e-07,59227.0,59226.0,5.1631026]
[1724180509416,7.6e-07,59232.0,59231.0,0.202569]
[1724180509614,7.6e-07,59232.0,59231.0,0.494669]
[1724180509818,0.06708699,59247.0,59246.0,0.067505]
[1724180510008,0.06708699,59247.0,59246.0,3.837505]
[1724180510412,0.06708699,59249.0,59248.0,0.067503]
[1724180511409,0.06708699,59251.0,59249.0,0.067502]
[1724180511903,0.06708699,59251.0,59246.0,3.77088]
[1724180512110,0.13420933,59251.0,59250.0,0.067501]
[1724180512307,0.13420933,59251.0,59246.0,3.77]
[1724180512308,0.0675,59251.0,59246.0,0.00092]
[1724180512512,0.13421033,59250.0,59243.0,0.00025327]
[1724180512706,0.06670933,59249.0,59243.0,0.00025327]
[1724180512913,0.067507,59245.0,59243.0,0.00025327]
[1724180513220,0.067503,59249.0,59247.0,0.067503]
[1724180513517,0.067503,59249.0,59248.0,0.067503]
[1724180514815,0.067507,59245.0,59244.0,0.067507]
[1724180515014,0.0666617,59247.0,59246.0,0.067505]
[1724180515319,0.0666617,59247.0,59243.0,0.00025327]
[1724180515320,0.067508,59244.0,59243.0,0.00025327]
[1724180518913,0.067508,59244.0,59243.0,0.06776227]
[1724180519422,0.07593239,59244.0,59243.0,0.06776227]
[1724180520619,0.067508,59244.0,59243.0,0.06776227]
[1724180521009,0.067502,59250.0,59249.0,0.067502]
[1724180521321,0.07579801,59250.0,59249.0,0.067502]
[1724180523918,0.067498,59253.0,59252.0,0.067497]
[1724180524427,0.067498,59253.0,59252.0,3.837497]
[1724180526420,0.094,59255.0,59253.0,0.067497]
[1724180527610,0.161495,59255.0,59253.0,0.067497]
[1724180527816,0.134994,59253.0,59252.0,0.00088]
[1724180528016,0.067504,59248.0,59247.0,0.067504]
[1724180528318,0.0675,59251.0,59250.0,0.067499]
[1724180532625,0.07602987,59251.0,59250.0,0.067499]
[1724180533831,0.0675,59251.0,59250.0,0.067499]
[1724180534328,0.13416061,59251.0,59250.0,0.067499]
[1724180534715,0.0675,59251.0,59250.0,0.067499]
[1724180535323,0.13416061,59251.0,59250.0,0.067499]
[1724180535729,0.13416061,59251.0,59250.0,0.11771921]
[1724180536418,0.0675,59251.0,59250.0,0.11808497]
[1724180536832,0.00827815,59253.0,59252.0,0.067498]
[1724180537023,0.00278567,59253.0,59252.0,0.067498]
[1724180537425,0.06744188,59254.0,59253.0,0.067497]
[1724180537716,0.00025327,59254.0,59253.0,0.067497]
[1724180537919,0.00303876,59254.0,59253.0,0.20195428]
[1724180538122,0.00025327,59254.0,59253.0,0.134994]
[1724180539630,0.00025327,59254.0,59253.0,0.708771]
[1724180540022,0.00025327,59254.0,59253.0,1.108771]
[1724180541421,2.7e-07,59254.0,59253.0,1.38902864]
[1724180542430,2.7e-07,59254.0,59253.0,1.26049446]
[1724180542827,2.7e-07,59254.0,59253.0,1.38902624]
[1724180543330,2.7e-07,59254.0,59253.0,4.946268]
[1724180544226,2.7e-07,59254.0,59253.0,4.878771]
[1724180544421,0.00278528,59254.0,59253.0,4.811274]
[1724180544626,0.00278528,59254.0,59253.0,3.904994]
[1724180544826,0.00278528,59254.0,59253.0,3.97231172]
[1724180545528,0.00278528,59254.0,59253.0,3.904994]
[1724180545725,0.00278528,59254.0,59253.0,3.837497]
[1724180546028,0.00278528,59254.0,59253.0,0.067497]
[1724180547321,0.08664435,59254.0,59253.0,0.067497]
[1724180548328,0.08664435,59254.0,59253.0,0.134994]
[1724180548531,0.08661994,59254.0,59253.0,0.134994]
[1724180548830,0.00278561,59254.0,59253.0,0.134994]
[1724180549332,0.08661994,59254.0,59253.0,0.134994]
[1724180549926,0.00278561,59254.0,59253.0,0.067497]
[1724180550639,0.067498,59252.0,59251.0,0.00088]
[1724180550840,0.067501,59250.0,59249.0,0.0675]
[1724180551030,0.07028634,59250.0,59249.0,0.0675]
[1724180551230,0.07028664,59250.0,59249.0,0.0675]
[1724180552334,0.00278564,59250.0,59249.0,0.0675]
[1724180552536,0.10341613,59250.0,59249.0,0.0675]
[1724180552736,0.00278564,59250.0,59249.0,0.0675]
[1724180554534,0.0959,59251.0,59250.0,0.067501]
[1724180554737,0.09868564,59251.0,59250.0,0.067501]
[1724180555131,0.09868562,59251.0,59250.0,0.067501]
[1724180555332,0.09868562,59251.0,59250.0,0.135002]
[1724180555527,0.09868562,59251.0,59250.0,0.18549444]
[1724180555737,0.09868562,59251.0,59250.0,0.202503]
[1724180556037,0.09868562,59251.0,59250.0,0.26982072]
[1724180556236,0.09868562,59251.0,59250.0,3.972503]
[1724180556434,0.09868562,59251.0,59250.0,4.03982072]
[1724180556940,0.00278562,59251.0,59250.0,4.878823]
[1724180557138,0.00278562,59251.0,59250.0,4.94614072]
[1724180557337,0.00278562,59251.0,59250.0,4.878823]
[1724180557636,0.00278562,59251.0,59250.0,5.096324]
[1724180558541,0.00278562,59251.0,59250.0,5.16367611]
[1724180558735,0.00278562,59251.0,59250.0,0.20235411]
[1724180559043,0.00278562,59251.0,59250.0,0.18551837]
[1724180560438,0.00278562,59251.0,59250.0,0.135002]
[1724180561141,0.00278562,59251.0,59250.0,0.202503]
[1724180561445,0.00278562,59251.0,59250.0,0.26985511]
[1724180562543,0.00278562,59251.0,59250.0,0.20235411]
[1724180563343,0.00278562,59251.0,59250.0,0.26985511]
[1724180563737,0.00278562,59251.0,59250.0,0.202503]
[1724180566246,0.00278562,59251.0,59250.0,0.26988736]
[1724180566639,2.7e-07,59254.0,59253.0,0.067497]
[1724180566835,0.00278565,59254.0,59253.0,0.067497]
[1724180567640,0.00278565,59254.0,59253.0,0.134994]
[1724180568242,0.00278565,59254.0,59253.0,0.14346228]
[1724180569050,0.00278565,59254.0,59253.0,0.21095928]
[1724180569341,0.00278565,59254.0,59253.0,0.26151732]
[1724180569733,0.00278565,59254.0,59253.0,0.76779577]
[1724180569943,0.00278565,59254.0,59253.0,1.16779577]
[1724180570142,0.00278565,59254.0,59253.0,1.11723928]
[1724180570532,0.00278565,59254.0,59253.0,1.18462364]
[1724180570743,0.00278565,59254.0,59253.0,1.11723928]
[1724180571635,0.02628591,59277.0,59275.0,19.14172399]
[1724180571841,0.17030679,59276.0,59275.0,19.14172399]
[1724180572038,1.04777596,59276.0,59275.0,19.14172399]
[1724180572945,1.08035573,59276.0,59275.0,19.14172399]
[1724180573147,1.04777592,59276.0,59275.0,19.14172399]
[1724180573944,0.68697592,59276.0,59275.0,19.14172399]
[1724180574335,0.00854945,59278.0,59275.0,19.14172399]
[1724180574541,0.00016456,59281.0,59275.0,19.14172399]
[1724180574542,0.0027847,59277.0,59276.0,0.067471]
[1724180574845,0.067471,59276.0,59275.0,19.14260399]
[1724180575151,0.21595564,59276.0,59275.0,19.14172399]
[1724180578344,0.21595574,59276.0,59275.0,19.14172399]
[1724180579846,0.213171,59276.0,59275.0,19.14172399]
[1724180580044,0.21595573,59276.0,59275.0,19.14172399]
[1724180580644,0.21595573,59276.0,59275.0,19.20919599]
[1724180582746,0.14848473,59276.0,59275.0,19.20919599]
[1724180583053,0.14848473,59276.0,59275.0,19.27666799]
[1724180584445,0.33180839,59276.0,59275.0,19.27666799]
[1724180584850,0.1810587,59276.0,59275.0,19.27666799]
[1724180585053,0.18105843,59276.0,59275.0,19.27666799]
[1724180585845,0.18105843,59276.0,59275.0,19.28505958]
[1724180586745,0.3152085,59276.0,59275.0,19.21758758]
[1724180588247,0.18105843,59276.0,59275.0,19.21758758]
[1724180588447,0.18105843,59276.0,59275.0,19.20919599]
[1724180589153,0.0353584,59276.0,59275.0,19.27666799]
[1724180589355,0.1369016,59276.0,59275.0,19.63746799]
[1724180589550,0.0353584,59276.0,59275.0,19.63746799]
[1724180589853,0.0353584,59276.0,59275.0,19.70493999]
[1724180590855,0.0353584,59276.0,59275.0,23.48366291]
[1724180591050,0.12014151,59276.0,59275.0,23.48366291]
[1724180591244,0.15271548,59276.0,59275.0,23.48366291]
[1724180591453,0.0353584,59276.0,59275.0,23.48366291]
[1724180592355,0.00278443,59276.0,59275.0,23.48366291]
[1724180592559,0.00016456,59281.0,59280.0,0.067466]
[1724180592749,0.00294881,59281.0,59280.0,0.428266]
[1724180594454,0.13787881,59281.0,59280.0,0.3608]
[1724180595455,0.067471,59276.0,59275.0,19.57087599]
[1724180595660,0.00278425,59276.0,59275.0,19.56999599]
[1724180595956,0.00278425,59276.0,59275.0,19.93079599]
[1724180596459,0.067467,59280.0,59279.0,0.067467]
[1724180596655,0.07025134,59280.0,59279.0,0.067467]
[1724180601255,0.067471,59277.0,59276.0,0.06747]
[1724180601455,0.07025534,59277.0,59276.0,0.06747]
[1724180601655,0.07025544,59277.0,59276.0,0.06747]
[1724180601862,0.10282916,59277.0,59276.0,0.06747]
[1724180603964,0.067471,59276.0,59275.0,19.50340399]
[1724180604159,1.23880833,59276.0,59275.0,19.14172399]
[1724180604460,1.74832769,59276.0,59275.0,18.91702399]
[1724180605165,1.89952988,59276.0,59275.0,18.91702399]
[1724180605765,1.74832769,59276.0,59275.0,18.91702399]
[1724180606460,1.74833017,59276.0,59275.0,18.91702399]
[1724180606658,1.69655438,59276.0,59275.0,18.91702399]
[1724180607461,1.64470008,59276.0,59275.0,18.91702399]
[1724180607659,1.65525062,59276.0,59275.0,18.91702399]
[1724180608369,1.62266841,59276.0,59275.0,18.91702399]
[1724180608772,1.65525158,59276.0,59275.0,18.91702399]
[1724180609165,1.62266841,59276.0,59275.0,18.91702399]
[1724180609668,1.22266841,59276.0,59275.0,18.91702399]
[1724180609864,1.08266841,59276.0,59275.0,18.91702399]
[1724180611060,1.18330965,59276.0,59275.0,18.91702399]
[1724180611872,1.18330947,59276.0,59275.0,18.91702399]
[1724180612269,1.17275948,59276.0,59275.0,18.91702399]
[1724180612464,1.18330946,59276.0,59275.0,18.91702399]
[1724180613369,1.44346822,59276.0,59275.0,18.91702399]
[1724180613572,1.430133,59276.0,59275.0,18.91702399]
[1724180613769,1.44346818,59276.0,59275.0,18.91702399]
[1724180614168,1.59346818,59276.0,59275.0,18.91702399]
[1724180614368,1.88667626,59276.0,59275.0,18.91702399]
[1724180614564,0.52491676,59276.0,59275.0,18.91702399]
[1724180614766,0.28093452,59276.0,59275.0,18.98449599]
[1724180614971,0.10283845,59276.0,59275.0,18.98449599]
[1724180615970,0.10283805,59276.0,59275.0,18.98449599]
[1724180616278,0.11338651,59276.0,59275.0,18.98449599]
[1724180616467,0.10283805,59276.0,59275.0,18.98449599]
[1724180617071,0.1028334,59276.0,59275.0,18.98449599]
[1724180619177,0.10283348,59276.0,59275.0,18.98449599]
[1724180619578,0.17030448,59276.0,59275.0,18.91702399]
[1724180619773,1.14389548,59276.0,59275.0,18.91702399]
[1724180619971,1.73776216,59276.0,59275.0,18.91702399]
[1724180620273,1.74831172,59276.0,59275.0,18.91702399]
[1724180621078,1.34831172,59276.0,59275.0,18.91702399]
[1724180621274,1.74831172,59276.0,59275.0,18.91702399]
[1724180621979,1.73497737,59276.0,59275.0,18.91702399]
[1724180622168,1.74831288,59276.0,59275.0,18.91702399]
[1724180622370,1.80697599,59276.0,59275.0,18.91702399]
[1724180622571,1.62266851,59276.0,59275.0,18.91702399]
[1724180622770,1.22266851,59276.0,59275.0,18.91702399]
[1724180623373,0.71654851,59276.0,59275.0,18.91702399]
[1724180623680,0.71654845,59276.0,59275.0,18.91702399]
[1724180624171,1.22266844,59276.0,59275.0,18.8043375]
[1724180624378,1.72272259,59276.0,59275.0,18.8043375]
[1724180624577,1.72272259,59276.0,59275.0,18.51417855]
[1724180624780,1.68155051,59276.0,59275.0,18.51417855]
[1724180625172,1.68155051,59276.0,59275.0,18.43866855]
[1724180625481,1.65525159,59276.0,59275.0,18.43866855]
[1724180625780,1.65525159,59276.0,59275.0,18.40205855]
[1724180626579,1.65525159,59276.0,59275.0,18.36415855]
[1724180627588,1.64191615,59276.0,59275.0,18.36415855]
[1724180627882,1.65525286,59276.0,59275.0,18.36415855]
[1724180628272,1.64470166,59276.0,59275.0,18.36415855]
[1724180628471,1.65525284,59276.0,59275.0,18.36415855]
[1724180628674,1.65525569,59276.0,59275.0,18.36415855]
[1724180631089,1.65525569,59276.0,59275.0,18.32655855]
[1724180631591,1.72272669,59276.0,59275.0,18.18782783]
[1724180631779,1.70939,59276.0,59275.0,17.13727433]
[1724180631985,1.72272664,59276.0,59275.0,17.13727433]
[1724180633383,1.72272697,59276.0,59275.0,17.13727433]
[1724180633684,2.01482697,59276.0,59275.0,17.13727433]
[1724180633886,1.94735597,59276.0,59275.0,17.13727433]
[1724180634096,1.94735597,59276.0,59275.0,17.06330245]
[1724180634384,1.94735604,59276.0,59275.0,17.06330245]
[1724180634779,1.65525604,59276.0,59275.0,17.06330245]
[1724180635089,1.94735604,59276.0,59275.0,17.02609245]
[1724180635681,1.53401933,59276.0,59275.0,17.02609245]
[1724180635876,1.54735607,59276.0,59275.0,17.02609245]
[1724180636177,1.54735598,59276.0,59275.0,17.02609245]
[1724180637493,1.64044621,59276.0,59275.0,17.02609245]
[1724180638389,2.04044621,59276.0,59275.0,17.02609245]
[1724180639187,1.64044621,59276.0,59275.0,17.02609245]
[1724180639391,2.04044621,59276.0,59275.0,17.02609245]
[1724180639594,1.62989507,59276.0,59275.0,17.02609245]
[1724180639892,1.64044625,59276.0,59275.0,17.02609245]
[1724180640284,2.04044625,59276.0,59275.0,16.98827445]
[1724180640886,1.64044625,59276.0,59275.0,16.98827445]
[1724180641285,1.66675361,59276.0,59275.0,16.98827445]
[1724180641488,1.66675354,59276.0,59275.0,16.98827445]
[1724180641789,1.37465354,59276.0,59275.0,16.98827445]
[1724180641991,0.86853354,59276.0,59275.0,16.98827445]
[1724180642192,0.8167536,59276.0,59275.0,16.98827445]
[1724180642389,0.79044624,59276.0,59275.0,16.98827445]
[1724180642696,0.65550424,59276.0,59275.0,16.98827445]
[1724180642991,0.51550424,59276.0,59275.0,16.98827445]
[1724180643196,0.6896726,59276.0,59275.0,16.98827445]
[1724180643985,0.64836207,59276.0,59275.0,16.98827445]
[1724180644285,0.50495306,59276.0,59275.0,16.98827445]
[1724180644486,0.36358551,59276.0,59275.0,17.05574645]
[1724180646692,0.36358478,59276.0,59275.0,17.05574645]
[1724180646899,0.3741332,59276.0,59275.0,17.05574645]
[1724180649094,0.0133332,59276.0,59275.0,17.41654645]
[1724180649804,0.08393976,59280.0,59275.0,18.32266645]
[1724180650003,0.36096456,59281.0,59280.0,0.067466]
[1724180650199,0.37151197,59281.0,59280.0,0.067466]
[1724180651901,0.38036885,59281.0,59280.0,0.067466]
[1724180652102,0.01956885,59281.0,59280.0,0.067466]
[1724180653895,0.00902144,59281.0,59280.0,0.067466]
[1724180656793,0.00016456,59281.0,59280.0,0.067466]
[1724180657395,0.06763056,59281.0,59277.0,0.06747]
[1724180657592,0.067471,59278.0,59277.0,0.06747]
[1724180657794,0.06763056,59281.0,59275.0,17.35003445]
[1724180657795,0.067471,59276.0,59275.0,17.35003445]